bitfinex/quotes_BTCUSD_20250620
["timestamp","ask_amount","ask_price","bid_price","bid_amount"]
[1750431865834,0.03099683,104250.0,104240.0,0.33647362]
[1750431866065,0.0089,104250.0,104240.0,0.68382635]
[1750431866923,0.0089,104250.0,104240.0,1.74097075]
[1750431867129,0.02780628,104290.0,104280.0,0.22055891]
[1750431867343,0.02780628,104290.0,104280.0,0.37001171]
[1750431867344,0.02226019,104290.0,104280.0,0.37001171]
[1750431867569,0.2205168,104300.0,104280.0,0.26514331]
[1750431867804,0.14547338,104300.0,104290.0,0.21094976]
[1750431868005,0.12629876,104300.0,104290.0,0.22053776]
[1750431868220,0.09849248,104300.0,104290.0,0.22053776]
[1750431868871,0.10149248,104300.0,104290.0,0.22053776]
[1750431869104,0.02524754,104300.0,104290.0,0.35906737]
[1750431869312,0.02224754,104300.0,104290.0,0.59720737]
[1750431869526,0.16988119,104320.0,104310.0,0.22049548]
[1750431869733,0.53210624,104320.0,104310.0,0.22049548]
[1750431869944,0.36875867,104310.0,104300.0,0.22050011]
[1750431870161,0.41876355,104310.0,104300.0,0.22050011]
[1750431870361,0.42835017,104310.0,104300.0,0.22050011]
[1750431870575,0.36222505,104310.0,104300.0,0.22050011]
[1750431871363,0.02222505,104310.0,104300.0,0.22050011]
[1750431871603,0.61804113,104320.0,104310.0,0.22049548]
[1750431871833,0.67051381,104320.0,104310.0,0.21090932]
[1750431872043,0.67051381,104320.0,104300.0,0.20134209]
[1750431872044,0.55090941,104310.0,104300.0,0.20134209]
[1750431872245,0.01917627,104290.0,104280.0,0.20138071]
[1750431872407,0.01917627,104290.0,104280.0,0.22055873]
[1750431872613,0.04138491,104290.0,104280.0,0.22055873]
[1750431872809,0.04138482,104290.0,104280.0,0.22055873]
[1750431873219,0.63616529,104290.0,104280.0,0.19179133]
[1750431873421,0.49434271,104290.0,104280.0,0.23014847]
[1750431873623,0.7102456,104290.0,104280.0,0.21097036]
[1750431873866,0.87365723,104290.0,104280.0,0.22055965]
[1750431874016,0.57510013,104280.0,104270.0,0.00959048]
[1750431874234,0.39591994,104280.0,104270.0,0.22058034]
[1750431874591,0.58771127,104280.0,104270.0,0.21099041]
[1750431874806,0.58771127,104280.0,104270.0,0.22058052]
[1750431875035,0.61546157,104280.0,104270.0,0.22058052]
[1750431875479,0.58771127,104280.0,104270.0,0.22258052]
[1750431875697,0.61546157,104280.0,104270.0,0.22058052]
[1750431875909,0.00959002,104270.0,104260.0,0.21101]
[1750431876125,0.20177071,104270.0,104260.0,0.00014138]
[1750431876344,0.85006383,104270.0,104260.0,0.00014138]
[1750431876579,0.92457043,104270.0,104260.0,0.00014138]
[1750431876788,0.96164477,104270.0,104260.0,0.00014138]
[1750431877617,0.99244477,104270.0,104260.0,0.00014138]
[1750431877845,0.99739447,104270.0,104260.0,0.00014138]
[1750431878056,1.09262432,104270.0,104260.0,0.00014138]
[1750431878268,1.09262432,104270.0,104260.0,0.00214138]
[1750431878269,5.95167032,104270.0,104260.0,0.00214138]
[1750431878472,6.14435281,104270.0,104260.0,0.00214138]
[1750431878684,5.92099281,104270.0,104260.0,0.00014138]
[1750431878902,0.63693803,104270.0,104260.0,0.00014138]
[1750431879128,0.84589708,104270.0,104260.0,0.00014138]
[1750431879347,0.82085088,104270.0,104260.0,0.1919695]
[1750431879588,0.82085088,104270.0,104260.0,0.00014138]
[1750431879821,0.82085088,104270.0,104260.0,0.2015609]
[1750431880289,0.91612073,104270.0,104260.0,0.2015609]
[1750431880543,0.91612073,104270.0,104260.0,0.21115212]
[1750431881239,0.78385183,104270.0,104260.0,0.21115212]
[1750431881492,0.46303242,104270.0,104260.0,0.21115212]
[1750431881711,0.80303242,104270.0,104260.0,0.23033428]
[1750431881950,0.80303242,104270.0,104260.0,0.22074325]
[1750431882233,0.39495087,104270.0,104260.0,0.22074325]
[1750431882462,0.02720024,104270.0,104260.0,0.28214281]
[1750431882666,0.005,104270.0,104260.0,0.34454281]
[1750431882899,0.005,104270.0,104260.0,0.43982174]
[1750431883113,0.002,104270.0,104260.0,0.43982174]
[1750431883320,0.21131273,104290.0,104280.0,0.22055891]
[1750431883508,0.42530008,104290.0,104280.0,0.21096999]
[1750431883747,0.20476148,104290.0,104280.0,0.23014801]
[1750431883956,0.03180148,104290.0,104280.0,0.23014801]
[1750431884216,0.04138948,104290.0,104280.0,0.23014801]
[1750431884425,0.39097766,104290.0,104280.0,0.23014801]
[1750431884630,0.39097775,104290.0,104280.0,0.23014801]
[1750431885054,0.40056621,104290.0,104280.0,0.23014801]
[1750431885268,0.02876684,104280.0,104270.0,0.21097294]
[1750431885455,0.03835622,104280.0,104270.0,0.22056324]
[1750431885707,0.02876684,104280.0,104270.0,0.22056324]
[1750431885917,0.03835613,104280.0,104270.0,0.22056324]
[1750431886131,0.02876684,104280.0,104270.0,0.22056333]
[1750431886345,0.03835622,104280.0,104270.0,0.22056333]
[1750431886570,0.73249494,104280.0,104260.0,0.22115092]
[1750431886821,0.01917995,104270.0,104260.0,0.23074224]
[1750431887035,0.01917977,104270.0,104260.0,0.23074224]
[1750431887467,0.37836037,104270.0,104260.0,0.23074224]
[1750431887682,0.57017009,104270.0,104260.0,0.23074306]
[1750431887895,0.57017009,104270.0,104260.0,0.24992485]
[1750431888553,0.54128037,104270.0,104260.0,0.24992421]
[1750431888978,0.36835972,104270.0,104260.0,0.24992421]
[1750431889629,0.57935004,104270.0,104260.0,0.25192421]
[1750431889847,0.5697602,104270.0,104260.0,0.22315203]
[1750431890068,0.57935068,104270.0,104260.0,0.23274297]
[1750431890290,0.34,104270.0,104260.0,0.28383322]
[1750431890512,1.22202967,104290.0,104280.0,0.22055901]
[1750431890819,1.23161767,104290.0,104280.0,0.23014829]
[1750431890905,1.03984473,104290.0,104280.0,0.23973721]
[1750431891115,0.86696473,104290.0,104280.0,0.23973721]
[1750431891552,0.01917995,104270.0,104260.0,0.38153868]
[1750431891762,0.01917977,104270.0,104260.0,0.2307426]
[1750431891975,0.02876988,104270.0,104260.0,0.2307426]
[1750431892192,0.01917977,104270.0,104260.0,0.2307426]
[1750431892404,0.02876988,104270.0,104260.0,0.2307426]
[1750431892833,0.72385027,104280.0,104270.0,0.21099004]
[1750431893052,0.72385027,104280.0,104270.0,0.22057997]
[1750431893473,0.72385027,104280.0,104270.0,0.20140002]
[1750431893684,0.72385027,104280.0,104270.0,0.21099023]
[1750431893886,0.72385027,104280.0,104270.0,0.2014002]
[1750431894303,0.21594096,104270.0,104260.0,0.01214138]
[1750431894538,0.31121989,104270.0,104260.0,0.01214138]
[1750431894726,0.34251989,104270.0,104260.0,0.01014138]
[1750431894931,0.22211978,104270.0,104260.0,0.01014138]
[1750431895143,0.4756309,104270.0,104260.0,0.01014138]
[1750431895355,1.3138309,104270.0,104260.0,0.01014138]
[1750431895563,6.36810296,104270.0,104260.0,0.01014138]
[1750431895793,6.46810296,104270.0,104260.0,0.01014138]
[1750431896012,6.49587005,104270.0,104260.0,0.01014138]
[1750431896217,6.31770296,104270.0,104260.0,0.01014138]
[1750431896421,6.54094296,104270.0,104260.0,0.01014138]
[1750431896636,6.54594296,104270.0,104260.0,0.01014138]
[1750431896848,6.59594296,104270.0,104260.0,0.01014138]
[1750431897075,6.59294296,104270.0,104260.0,0.01014138]
[1750431897480,6.59694296,104270.0,104260.0,0.01014138]
[1750431898363,6.49479195,104270.0,104260.0,0.01014138]
[1750431899830,6.49279195,104270.0,104260.0,0.01014138]
[1750431900474,6.27559195,104270.0,104260.0,0.01014138]
[1750431900704,1.24358595,104270.0,104260.0,0.01014138]
[1750431900944,0.64667904,104270.0,104260.0,0.01014138]
[1750431901159,0.81947904,104270.0,104260.0,0.01014138]
[1750431901386,0.91474889,104270.0,104260.0,0.01014138]
[1750431901601,0.92928974,104270.0,104260.0,0.01014138]
[1750431901824,5.96129574,104270.0,104260.0,0.01014138]
[1750431902037,0.95157786,104270.0,104260.0,0.01014138]
[1750431902276,0.92528974,104270.0,104260.0,0.01014138]
[1750431902755,0.97868974,104270.0,104260.0,0.01014138]
[1750431903012,0.97268974,104270.0,104260.0,0.01014138]
[1750431903274,0.97468974,104270.0,104260.0,0.01014138]
[1750431903539,6.06198881,104270.0,104260.0,0.01014138]
[1750431903771,6.09228881,104270.0,104260.0,0.01014138]
[1750431904258,6.14228881,104270.0,104260.0,0.01014138]
[1750431905138,6.1700559,104270.0,104260.0,0.01014138]
[1750431906882,6.1700559,104270.0,104240.0,0.0011]
[1750431906883,5.64353652,104250.0,104240.0,0.0011]
[1750431907105,0.21107101,104230.0,104220.0,0.12395539]
[1750431907322,0.21107101,104230.0,104220.0,0.12409682]
[1750431907323,5.91589679,104230.0,104220.0,0.12409682]
[1750431907559,5.94909679,104230.0,104220.0,0.12409682]
[1750431908018,5.94909679,104230.0,104220.0,0.00014143]
[1750431908019,6.00255657,104230.0,104220.0,0.00014143]
[1750431908258,6.09782642,104230.0,104220.0,0.00014143]
[1750431908966,6.14782642,104230.0,104220.0,0.00014143]
[1750431909223,6.14782642,104230.0,104180.0,0.0001]
[1750431909224,0.02413842,104190.0,104180.0,0.0001]
[1750431909459,0.01454085,104170.0,104160.0,0.2016128]
[1750431909684,0.35454085,104180.0,104170.0,0.22079171]
[1750431909950,0.48821337,104180.0,104170.0,0.2297483]
[1750431910183,0.34,104180.0,104170.0,0.2939483]
[1750431910436,0.73839281,104200.0,104190.0,0.2207498]
[1750431910656,0.37838604,104200.0,104190.0,0.2207498]
[1750431910870,0.55113159,104200.0,104190.0,0.2207499]
[1750431911084,0.36878921,104200.0,104190.0,0.2303471]
[1750431911312,0.37838595,104200.0,104190.0,0.2619471]
[1750431911535,0.35919247,104200.0,104190.0,0.2619471]
[1750431911749,0.36878884,104200.0,104190.0,0.26241874]
[1750431911967,0.38798204,104200.0,104190.0,0.26241874]
[1750431912411,0.38798268,104200.0,104190.0,0.26241874]
[1750431912659,0.57032497,104200.0,104190.0,0.25282154]
[1750431912891,0.5607286,104200.0,104190.0,0.26241892]
[1750431913141,0.3697893,104200.0,104190.0,0.27201612]
[1750431913396,0.39098296,104200.0,104190.0,0.27201612]
[1750431913641,0.38138604,104200.0,104190.0,0.27201612]
[1750431913879,0.39098287,104200.0,104190.0,0.27201612]
[1750431914121,0.37178985,104200.0,104190.0,0.27201621]
[1750431914366,0.38138668,104200.0,104190.0,0.27201556]
[1750431914611,0.35259619,104200.0,104190.0,0.27201556]
[1750431914853,0.36219265,104200.0,104190.0,0.27201556]
[1750431915092,0.35259619,104200.0,104190.0,0.27201556]
[1750431915326,0.36219247,104200.0,104190.0,0.27201556]
[1750431915590,0.003,104200.0,104190.0,0.47773556]
[1750431915833,0.003,104200.0,104190.0,0.63998396]
[1750431916386,0.00054025,104200.0,104190.0,1.68766915]
[1750431916621,0.001,104230.0,104220.0,0.22068588]
[1750431916843,0.001,104230.0,104220.0,1.19561]
[1750431917066,0.001,104230.0,104220.0,1.36655319]
[1750431917280,0.07624494,104260.0,104250.0,0.22062238]
[1750431917518,0.07614494,104260.0,104250.0,0.45670238]
[1750431918199,0.08573551,104260.0,104250.0,0.39330238]
[1750431918410,0.09532627,104260.0,104250.0,0.39330238]
[1750431918638,0.09546736,104260.0,104250.0,0.39830238]
[1750431918859,0.45464952,104260.0,104250.0,0.22562238]
[1750431919098,0.4450583,104260.0,104250.0,0.39826238]
[1750431919528,0.41628603,104260.0,104250.0,0.39826238]
[1750431919742,0.44505839,104260.0,104250.0,0.22562238]
[1750431919960,0.34014109,104260.0,104250.0,0.27613841]
[1750431920188,0.34973166,104260.0,104250.0,0.27113841]
[1750431920413,0.34014109,104260.0,104250.0,0.45077841]
[1750431920846,0.34014109,104260.0,104250.0,0.44777841]
[1750431921371,0.00014109,104260.0,104250.0,0.43311734]
[1750431921438,0.00014109,104260.0,104250.0,0.43511734]
[1750431922043,0.00014109,104260.0,104250.0,0.65795734]
[1750431922622,0.00014109,104260.0,104250.0,1.31464253]
[1750431922804,0.00014109,104260.0,104250.0,0.65795734]
[1750431923369,0.00958873,104280.0,104270.0,0.22058006]
[1750431923568,0.00958873,104280.0,104270.0,0.17256]
[1750431923569,0.20138071,104280.0,104270.0,0.17256]
[1750431923749,0.38967076,104280.0,104260.0,0.39316095]
[1750431923951,0.23159913,104280.0,104270.0,0.21099022]
[1750431924149,0.23012594,104290.0,104280.0,0.21097018]
[1750431924373,0.2446667,104290.0,104280.0,0.22055937]
[1750431924581,0.23012585,104290.0,104280.0,0.22155937]
[1750431924748,0.22053785,104290.0,104280.0,0.21197018]
[1750431924951,0.21094967,104290.0,104280.0,0.2023808]
[1750431925181,0.22053822,104290.0,104280.0,0.221559]
[1750431925555,0.57012686,104290.0,104280.0,0.21196999]
[1750431925810,0.57312686,104290.0,104280.0,0.21197009]
[1750431926013,0.003,104290.0,104280.0,1.31270927]
[1750431926221,0.003,104290.0,104280.0,0.65602408]
[1750431926862,0.003,104290.0,104280.0,0.43326408]
[1750431927312,0.003,104290.0,104280.0,1.46270927]
[1750431927524,0.09546561,104320.0,104310.0,0.22049548]
[1750431927739,0.43560704,104320.0,104310.0,0.22049548]
[1750431928195,0.41643637,104320.0,104310.0,0.22049548]
[1750431928404,0.43560704,104320.0,104310.0,0.22049548]
[1750431928617,0.34977658,104320.0,104310.0,0.22049548]
[1750431928827,0.34977649,104320.0,104310.0,0.22049548]
[1750431929050,0.34977649,104320.0,104310.0,0.22149548]
[1750431929270,0.35936173,104320.0,104310.0,0.22149548]
[1750431929488,0.36894706,104320.0,104310.0,0.22149548]
[1750431929701,0.36894706,104320.0,104310.0,0.22049548]
[1750431930351,0.36894716,104320.0,104310.0,0.22049548]
[1750431930576,0.62734554,104320.0,104310.0,0.21090941]
[1750431930790,0.36875876,104310.0,104300.0,0.38331244]
[1750431931223,0.36875876,104310.0,104300.0,0.21091244]
[1750431931457,0.34,104310.0,104300.0,0.38331244]
[1750431931664,0.34958607,104310.0,104300.0,0.21091244]
[1750431931883,0.35917232,104310.0,104300.0,0.38331244]
[1750431932093,0.34,104310.0,104300.0,0.38331244]
[1750431932302,0.34,104310.0,104300.0,0.38531244]
[1750431932779,0.34,104310.0,104300.0,0.47464496]
[1750431933004,0.34,104310.0,104300.0,0.47764496]
[1750431933216,0.33,104310.0,104300.0,0.44434496]
[1750431933420,0.33,104310.0,104300.0,0.41394496]
[1750431934252,0.00019143,104320.0,104310.0,0.22049548]
[1750431934473,0.00977649,104320.0,104310.0,0.22049548]
[1750431934911,0.00019143,104320.0,104310.0,0.24143867]
[1750431935123,0.00019143,104320.0,104310.0,0.3671176]
[1750431935358,0.00019143,104320.0,104310.0,0.3975176]
[1750431936004,0.00019143,104320.0,104310.0,0.3985176]
[1750431936216,0.00019143,104320.0,104310.0,0.3681176]
[1750431936926,0.00019143,104320.0,104310.0,0.39281548]
[1750431937146,0.00019143,104320.0,104310.0,0.22349548]
[1750431937357,0.00019143,104320.0,104310.0,0.39581548]
[1750431937573,0.00977649,104320.0,104310.0,0.22349548]
[1750431937785,0.00019143,104320.0,104310.0,0.39577548]
[1750431938449,0.00019143,104320.0,104310.0,0.45644427]
[1750431938665,0.00977649,104320.0,104310.0,0.22349548]
[1750431938880,0.01936164,104320.0,104310.0,0.39577548]
[1750431939086,0.00019143,104320.0,104310.0,0.39777548]
[1750431940348,0.00019143,104320.0,104310.0,0.49305441]
[1750431940553,0.00019143,104320.0,104310.0,0.61992426]
[1750431944913,0.00019143,104320.0,104310.0,1.2193696]
[1750431948117,4.97e-05,104340.0,104330.0,0.2204532]
[1750431948334,0.00052087,104340.0,104330.0,0.48785213]
[1750431948553,0.00052087,104340.0,104330.0,1.16195631]
[1750431948761,0.00052087,104340.0,104330.0,0.59301097]
[1750431948978,0.00052087,104340.0,104330.0,0.53097097]
[1750431949415,0.00052087,104340.0,104330.0,0.52825097]
[1750431949623,0.00052087,104340.0,104330.0,0.35617097]
[1750431949867,0.07676581,104340.0,104330.0,0.21086888]
[1750431950080,0.29719789,104340.0,104330.0,0.22045329]
[1750431950296,0.0191691,104330.0,104320.0,0.22045712]
[1750431950511,0.01916892,104330.0,104320.0,0.40208282]
[1750431950723,0.04142064,104330.0,104320.0,0.40208282]
[1750431950932,0.25228897,104330.0,104320.0,0.21087225]
[1750431951151,0.26187394,104330.0,104320.0,0.40208282]
[1750431951590,0.02875673,104320.0,104310.0,0.21590895]
[1750431951870,0.06059342,104320.0,104310.0,0.40712191]
[1750431952076,0.24272615,104320.0,104310.0,0.22549594]
[1750431952280,0.24272615,104320.0,104310.0,0.20632297]
[1750431952487,0.28015946,104320.0,104310.0,0.20632297]
[1750431952713,0.42607637,104320.0,104310.0,0.0145868]
[1750431952917,0.42607637,104320.0,104310.0,0.005]
[1750431952918,0.44403496,104320.0,104310.0,0.005]
[1750431953136,1.14209968,104320.0,104310.0,0.005]
[1750431953356,0.02876152,104300.0,104290.0,0.22050531]
[1750431953576,0.06060087,104300.0,104290.0,0.2109174]
[1750431953797,0.03895324,104300.0,104290.0,0.2109174]
[1750431954016,0.05007983,104300.0,104290.0,0.2109174]
[1750431954223,0.02225172,104300.0,104290.0,0.2109174]
[1750431954668,0.02225172,104300.0,104290.0,0.30733776]
[1750431954881,0.02225172,104300.0,104290.0,0.37739925]
[1750431955093,0.02225172,104300.0,104290.0,0.38039925]
[1750431955515,0.02225172,104300.0,104290.0,0.45712032]
[1750431956595,0.02225172,104300.0,104290.0,0.38705883]
[1750431956596,0.04142579,104300.0,104290.0,0.38705883]
[1750431956806,0.04142579,104300.0,104290.0,0.21905883]
[1750431957041,0.04142579,104300.0,104290.0,0.39101883]
[1750431957262,0.06925381,104300.0,104290.0,0.21905883]
[1750431957499,0.05007983,104300.0,104290.0,0.48629776]
[1750431957699,0.02225172,104300.0,104290.0,0.39101883]
[1750431957911,0.02225172,104300.0,104290.0,0.45892774]
[1750431958338,0.02225172,104300.0,104290.0,0.39097883]
[1750431958977,0.03183862,104300.0,104290.0,0.39097883]
[1750431959188,0.02225172,104300.0,104290.0,0.39097883]
[1750431959656,0.04142597,104300.0,104290.0,0.39097883]
[1750431959871,0.27059681,104300.0,104290.0,0.37183437]
[1750431960089,0.39312029,104300.0,104290.0,0.21909138]
[1750431960302,0.19588171,104300.0,104290.0,0.22867965]
[1750431960512,0.06925408,104300.0,104290.0,0.23826765]
[1750431960720,0.05007983,104300.0,104290.0,0.33354658]
[1750431960948,0.02225172,104300.0,104290.0,0.33354658]
[1750431961584,0.65911885,104320.0,104310.0,0.22049548]
[1750431961800,0.6718094,104320.0,104310.0,0.22049566]
[1750431962019,0.01917315,104310.0,104300.0,0.23549989]
[1750431962247,0.28020007,104310.0,104300.0,0.22591272]
[1750431962453,0.30261409,104310.0,104300.0,0.21632546]
[1750431962660,0.18028207,104310.0,104300.0,0.22591291]
[1750431962874,0.13839536,104310.0,104300.0,0.24508735]
[1750431963091,0.06929075,104310.0,104300.0,0.24508735]
[1750431963548,0.0222757,104310.0,104300.0,0.40231323]
[1750431963768,0.07453111,104330.0,104320.0,0.22047434]
[1750431964014,0.05012038,104330.0,104320.0,0.39231434]
[1750431964225,0.02227756,104330.0,104320.0,0.39231434]
[1750431964442,0.00727756,104330.0,104320.0,0.54791554]
[1750431964864,0.00727756,104330.0,104320.0,0.39231434]
[1750431965316,0.00727756,104330.0,104320.0,0.48759327]
[1750431965516,4.97e-05,104340.0,104330.0,0.2204532]
[1750431966149,4.97e-05,104340.0,104330.0,0.31573213]
[1750431966758,0.00052087,104340.0,104330.0,0.31573213]
[1750431966961,0.00052087,104340.0,104330.0,0.42234816]
[1750431968074,0.00052087,104340.0,104330.0,0.31573213]
[1750431968275,0.01010409,104340.0,104330.0,0.2204532]
[1750431968486,0.03885513,104340.0,104330.0,0.20128428]
[1750431968690,0.21086897,104330.0,104310.0,0.38266849]
[1750431968908,0.32184337,104330.0,104320.0,0.22047461]
[1750431969052,0.65575264,104330.0,104320.0,0.20130367]
[1750431969275,0.41901192,104330.0,104320.0,0.23006004]
[1750431969650,0.35916855,104330.0,104320.0,0.23006004]
[1750431969857,0.37833802,104330.0,104320.0,0.23006004]
[1750431970074,0.36875324,104330.0,104320.0,0.23006004]
[1750431970274,0.5796223,104330.0,104320.0,0.23006013]
[1750431970485,0.57003872,104330.0,104320.0,0.2224748]
[1750431970693,0.57003872,104330.0,104320.0,0.21288937]
[1750431970878,0.59245403,104330.0,104320.0,0.22247498]
[1750431971103,0.36875462,104330.0,104320.0,0.24164565]
[1750431971320,0.36875352,104330.0,104320.0,0.24164565]
[1750431971522,0.36875343,104330.0,104320.0,0.24164565]
[1750431972019,0.57003781,104330.0,104320.0,0.20330349]
[1750431972226,0.57003781,104330.0,104320.0,0.21288892]
[1750431972427,0.37833821,104330.0,104320.0,0.22247416]
[1750431972775,0.57962259,104330.0,104320.0,0.22247425]
[1750431972998,0.57962259,104330.0,104320.0,0.23205949]
[1750431973205,0.38792318,104330.0,104320.0,0.23205949]
[1750431973612,0.57003836,104330.0,104320.0,0.19371779]
[1750431973838,0.58086916,104330.0,104320.0,0.20530367]
[1750431974043,0.58086916,104330.0,104320.0,0.21488937]
[1750431974512,0.58086916,104330.0,104320.0,0.01358588]
[1750431974717,0.58086916,104330.0,104320.0,0.21488946]
[1750431975015,0.57128438,104330.0,104320.0,0.004]
[1750431975211,0.71300034,104330.0,104320.0,0.004]
[1750431975413,0.71292392,104330.0,104320.0,0.22447461]
[1750431975611,0.34958423,104330.0,104320.0,0.22447461]
[1750431975814,0.35916864,104330.0,104320.0,0.23405985]
[1750431975992,0.36875333,104330.0,104320.0,0.23205985]
[1750431976191,0.37833811,104330.0,104320.0,0.23205985]
[1750431976389,0.36875324,104330.0,104320.0,0.23205985]
[1750431976589,0.35916864,104330.0,104320.0,0.23205985]
[1750431976783,0.34958423,104330.0,104320.0,0.23205985]
[1750431977030,0.00052087,104340.0,104330.0,0.2204532]
[1750431977244,0.35968832,104340.0,104330.0,0.2204532]
[1750431977449,0.21136936,104340.0,104330.0,0.2204532]
[1750431977595,0.57053672,104340.0,104330.0,0.2204532]
[1750431977775,0.58012077,104340.0,104330.0,0.21086888]
[1750431977982,0.65622363,104340.0,104330.0,0.21086925]
[1750431978178,0.56095378,104340.0,104330.0,0.23003863]
[1750431978411,0.37127228,104340.0,104330.0,0.23962295]
[1750431978639,0.56295332,104340.0,104330.0,0.23962295]
[1750431978863,0.56295267,104340.0,104320.0,0.20130303]
[1750431979069,0.01917058,104320.0,104310.0,0.41301586]
[1750431979194,0.23005976,104320.0,104310.0,0.22049584]
[1750431979602,0.26035976,104320.0,104310.0,0.2109095]
[1750431979800,0.25077461,104320.0,104310.0,0.19173617]
[1750431980049,0.21090932,104310.0,104300.0,0.20134218]
[1750431980236,0.21090932,104310.0,104290.0,0.001]
[1750431980237,0.21092935,104300.0,104290.0,0.001]
[1750431980436,0.5968702,104300.0,104290.0,0.001]
[1750431980653,0.60645783,104300.0,104290.0,0.21194995]
[1750431980886,0.6015047,104300.0,104290.0,0.22153822]
[1750431981102,0.56051744,104300.0,104290.0,0.001]
[1750431981262,0.5509299,104300.0,104290.0,0.20236158]
[1750431981602,0.5509299,104300.0,104290.0,0.21209156]
[1750431981730,0.56547075,104300.0,104290.0,0.01073007]
[1750431981935,0.80822466,104300.0,104290.0,0.00314143]
[1750431982136,5.82191299,104300.0,104290.0,0.00314143]
[1750431982940,5.85104877,104300.0,104290.0,0.00314143]
[1750431983152,0.74279783,104300.0,104290.0,0.00514143]
[1750431983350,5.99604383,104300.0,104290.0,0.00514143]
[1750431983609,5.99604383,104300.0,104290.0,0.00314143]
[1750431983817,6.09131368,104300.0,104290.0,0.00314143]
[1750431984016,6.09231368,104300.0,104290.0,0.00314143]
[1750431984263,6.09231368,104300.0,104290.0,0.00014143]
[1750431984434,1.0311719,104300.0,104290.0,0.00014143]
[1750431984608,1.0331719,104300.0,104290.0,0.00014143]
[1750431984978,0.38544972,104300.0,104290.0,0.20250283]
[1750431985190,0.40462379,104300.0,104290.0,0.19291437]
[1750431985399,0.72544972,104300.0,104290.0,0.20250292]
[1750431985606,0.72544972,104300.0,104290.0,0.21209138]
[1750431985818,0.55392972,104300.0,104290.0,0.23126793]
[1750431986026,0.55392972,104300.0,104290.0,0.22167975]
[1750431986233,0.55392972,104300.0,104290.0,0.2408562]
[1750431986452,0.35258717,104300.0,104290.0,0.24085565]
[1750431986662,0.37176143,104300.0,104290.0,0.24085565]
[1750431986886,0.003,104300.0,104290.0,0.50761458]
[1750431987102,0.003,104300.0,104290.0,0.56961458]
[1750431987317,0.003,104300.0,104290.0,1.13855992]
[1750431987535,0.003,104300.0,104290.0,1.28855992]
[1750431987745,0.003,104300.0,104290.0,1.38382977]
[1750431987957,0.03833757,104330.0,104310.0,0.21089218]
[1750431987958,0.00958515,104320.0,104310.0,0.21089218]
[1750431988195,0.21086925,104330.0,104320.0,0.22047461]
[1750431988405,0.55086925,104330.0,104320.0,0.22047461]
[1750431988628,0.55086925,104330.0,104320.0,0.21088928]
[1750431988844,0.55086925,104330.0,104320.0,0.23006013]
[1750431989061,0.21088892,104320.0,104310.0,0.20132297]
[1750431989287,0.21090941,104310.0,104300.0,0.21089736]
[1750431989500,0.01917324,104310.0,104300.0,0.20131]
[1750431989709,0.00958644,104310.0,104300.0,0.22048444]
[1750431989926,0.00958598,104310.0,104300.0,0.2204838]
[1750431990393,0.01917214,104310.0,104300.0,0.2204838]
[1750431990605,0.0383451,104310.0,104300.0,0.2204838]
[1750431990805,0.02875848,104310.0,104300.0,0.2204838]
[1750431991013,0.23008209,104310.0,104300.0,0.20131]
[1750431991224,0.29667592,104310.0,104300.0,0.20231]
[1750431991434,0.22049593,104310.0,104300.0,0.2214848]
[1750431991643,0.02875967,104310.0,104300.0,0.23107197]
[1750431991854,0.02875967,104310.0,104300.0,0.24065905]
[1750431992072,0.00958543,104320.0,104310.0,0.230082]
[1750431992285,0.02875637,104320.0,104310.0,0.230082]
[1750431992759,0.4982497,104340.0,104330.0,0.20128428]
[1750431992972,0.52700037,104340.0,104330.0,0.2204532]
[1750431993188,0.5174166,104340.0,104330.0,0.2204532]
[1750431993400,0.53658368,104340.0,104330.0,0.2204532]
[1750431993607,0.52699991,104340.0,104330.0,0.2204532]
[1750431994062,0.52747108,104340.0,104330.0,0.2204532]
[1750431994281,0.54663853,104340.0,104330.0,0.2204532]
[1750431994502,0.51888758,104340.0,104330.0,0.2204532]
[1750431994921,0.52847117,104340.0,104330.0,0.2204532]
[1750431995136,0.53805494,104340.0,104330.0,0.2204532]
[1750431995800,0.53805503,104340.0,104330.0,0.2204532]
[1750431996011,0.53805494,104340.0,104330.0,0.2204532]
[1750431996218,0.52847117,104340.0,104330.0,0.2204532]
[1750431996427,0.54305494,104340.0,104330.0,0.2204532]
[1750431996637,0.74331994,104340.0,104330.0,0.20128428]
[1750431996853,0.01916874,104330.0,104320.0,0.22047416]
[1750431997071,0.02875343,104330.0,104320.0,0.22047416]
[1750431997290,0.03833821,104330.0,104320.0,0.22047416]
[1750431997494,0.22045339,104330.0,104320.0,0.2108891]
[1750431997715,0.22045339,104330.0,104320.0,0.22047462]
[1750431998002,0.20128419,104330.0,104320.0,0.21088901]
[1750431998216,0.02016874,104330.0,104320.0,0.22047425]
[1750431998431,0.29767811,104330.0,104310.0,0.2109084]
[1750431998653,0.21088891,104320.0,104310.0,0.20132297]
[1750431998865,0.01917241,104310.0,104300.0,0.21089681]
[1750431999072,0.00958607,104310.0,104300.0,0.22048444]
[1750431999287,0.02875857,104310.0,104300.0,0.22048444]
[1750431999502,0.00958708,104300.0,104290.0,0.23112567]
[1750431999709,0.40323847,104310.0,104300.0,0.21092954]
[1750431999915,0.21150175,104310.0,104300.0,0.22051671]
[1750432000097,0.2115012,104310.0,104300.0,0.23010379]
[1750432000332,0.35454085,104320.0,104310.0,0.20132288]
[1750432000541,0.35454085,104320.0,104310.0,0.22049548]
[1750432000542,0.53041113,104320.0,104310.0,0.22049548]
[1750432000749,0.21090895,104310.0,104300.0,0.21092954]
[1750432000956,0.21090895,104310.0,104300.0,0.21107097]
[1750432001172,0.22049575,104310.0,104300.0,0.2302454]
[1750432001389,0.81567158,104320.0,104300.0,0.2014837]
[1750432001596,0.19173617,104310.0,104300.0,0.2206585]
[1750432001774,0.19173617,104310.0,104300.0,0.2226585]
[1750432002012,0.19173617,104310.0,104300.0,0.2034837]
[1750432002222,0.19173617,104310.0,104300.0,0.21307124]
[1750432002649,0.21090895,104310.0,104300.0,0.23224586]
[1750432003073,0.21090895,104310.0,104300.0,0.24183303]
[1750432003471,0.22049575,104310.0,104300.0,0.24183303]
[1750432003678,0.22049575,104310.0,104300.0,0.23224586]
[1750432003813,0.22049575,104310.0,104300.0,0.23524586]
[1750432004403,0.22049575,104310.0,104300.0,0.2256586]
[1750432004607,0.22545035,104310.0,104300.0,0.00514143]
[1750432004822,0.39522365,104310.0,104300.0,0.20348361]
[1750432005021,0.05442729,104310.0,104300.0,0.22365805]
[1750432005230,0.31289401,104320.0,104310.0,0.21090932]
[1750432005598,0.71411387,104320.0,104310.0,0.21090932]
[1750432005806,0.70452872,104320.0,104310.0,0.2109095]
[1750432006016,0.21090913,104310.0,104300.0,0.2110706]
[1750432006221,0.02875958,104310.0,104300.0,0.23024522]
[1750432006630,0.0287594,104310.0,104300.0,0.23024522]
[1750432006834,0.23966908,104310.0,104300.0,0.22065814]
[1750432007245,0.23008283,104310.0,104300.0,0.21107097]
[1750432007653,0.20132297,104310.0,104300.0,0.21107097]
[1750432008241,0.21090968,104310.0,104300.0,0.22165823]
[1750432008452,0.2204963,104310.0,104300.0,0.23124531]
[1750432008660,0.01917333,104310.0,104300.0,0.23124531]